bitfinex/quotes_BTCUSD_20250410
["timestamp","ask_amount","ask_price","bid_price","bid_amount"]
[1744296015086,0.0089794,81596.0,81595.0,0.257368]
[1744296015257,0.71211382,81596.0,81590.0,0.012256]
[1744296015460,0.12055382,81595.0,81594.0,0.245114]
[1744296015665,0.59156,81596.0,81595.0,0.012255]
[1744296016362,0.59156,81596.0,81591.0,0.245115]
[1744296016363,0.71211382,81596.0,81588.0,0.245132]
[1744296016563,0.12055382,81595.0,81588.0,0.245132]
[1744296016770,0.12055382,81595.0,81591.0,0.245123]
[1744296016966,0.12055382,81595.0,81592.0,0.24512]
[1744296017178,0.12055382,81595.0,81592.0,0.245119]
[1744296017582,0.00012734,81610.0,81608.0,0.257327]
[1744296017762,1.38255382,81609.0,81608.0,0.257327]
[1744296018248,0.12055382,81609.0,81608.0,0.257327]
[1744296019740,0.00012734,81610.0,81609.0,0.012253]
[1744296020115,0.00012734,81610.0,81608.0,0.257327]
[1744296020720,0.00012734,81610.0,81609.0,0.012253]
[1744296021179,0.00012734,81610.0,81609.0,0.01470367]
[1744296021498,0.00012734,81610.0,81609.0,0.012253]
[1744296021698,0.00012734,81610.0,81609.0,0.01470318]
[1744296021984,0.00012734,81610.0,81609.0,0.012253]
[1744296022132,0.00012734,81610.0,81609.0,0.257324]
[1744296024207,3.4e-07,81610.0,81609.0,0.257324]
[1744296024752,3.4e-07,81610.0,81609.0,0.597324]
[1744296024949,4e-08,81633.0,81632.0,0.01225]
[1744296025206,4e-08,81633.0,81632.0,0.5997007]
[1744296025408,4e-08,81633.0,81632.0,0.597251]
[1744296025409,0.00042349,81633.0,81632.0,0.597251]
[1744296025616,0.00042349,81633.0,81632.0,0.643151]
[1744296025826,0.00042349,81633.0,81632.0,0.6655814]
[1744296027170,1.9e-07,81640.0,81636.0,0.352249]
[1744296027329,1.9e-07,81640.0,81639.0,0.597229]
[1744296027540,0.00012715,81640.0,81639.0,0.74021322]
[1744296028767,0.00012715,81640.0,81639.0,0.6196594]
[1744296029954,0.00012715,81640.0,81639.0,0.597229]
[1744296032849,0.00012715,81640.0,81639.0,0.257229]
[1744296033054,0.00012715,81640.0,81638.0,0.012249]
[1744296033255,0.12055382,81639.0,81633.0,0.012249]
[1744296033447,0.12055382,81639.0,81637.0,0.244984]
[1744296033653,0.12055382,81639.0,81626.0,0.01225]
[1744296033654,0.012249,81637.0,81626.0,0.01225]
[1744296033949,0.12055382,81636.0,81634.0,0.244995]
[1744296034219,0.12055382,81636.0,81634.0,0.257244]
[1744296035047,0.12055382,81636.0,81635.0,0.012249]
[1744296035278,0.01225,81631.0,81619.0,0.012252]
[1744296035489,0.12055382,81630.0,81623.0,0.245027]
[1744296035688,0.245026,81624.0,81616.0,0.012252]
[1744296035835,0.12055382,81623.0,81621.0,0.245034]
[1744296036037,0.12055382,81623.0,81622.0,0.012251]
[1744296036269,0.0454,81653.0,81629.0,0.257257]
[1744296036476,0.12055382,81634.0,81633.0,0.244998]
[1744296036681,0.12055382,81634.0,81633.0,0.257247]
[1744296037432,0.12055382,81634.0,81624.0,0.012251]
[1744296037675,0.12055382,81634.0,81632.0,0.244999]
[1744296037881,0.012249,81633.0,81623.0,0.245028]
[1744296038104,0.012249,81633.0,81625.0,0.24502]
[1744296038105,0.12055382,81632.0,81625.0,0.24502]
[1744296038475,0.19096,81639.0,81625.0,0.24502]
[1744296038476,1.5e-07,81640.0,81632.0,0.245001]
[1744296038692,1.5e-07,81640.0,81630.0,0.01225]
[1744296038693,7e-07,81648.0,81647.0,0.597203]
[1744296038897,7e-07,81648.0,81647.0,0.74023344]
[1744296039477,7e-07,81652.0,81651.0,0.352247]
[1744296039683,7e-07,81652.0,81651.0,0.47280082]
[1744296039904,7e-07,81652.0,81651.0,0.352247]
[1744296040189,7e-07,81652.0,81651.0,0.37472362]
[1744296040945,7e-07,81652.0,81651.0,0.352247]
[1744296041547,7e-07,81652.0,81651.0,0.47280082]
[1744296041747,7e-07,81652.0,81651.0,0.49524525]
[1744296043490,4e-05,81668.0,81663.0,0.597153]
[1744296043491,9e-07,81664.0,81663.0,0.597153]
[1744296043716,9e-07,81664.0,81663.0,1.14604767]
[1744296044122,4e-07,81671.0,81670.0,0.61167185]
[1744296044324,7e-07,81673.0,81672.0,0.257125]
[1744296044519,7e-07,81679.0,81678.0,0.597106]
[1744296044728,7e-07,81679.0,81678.0,0.71765982]
[1744296045049,0.00012766,81679.0,81678.0,0.74010425]
[1744296046346,6.6e-07,81679.0,81678.0,0.74010425]
[1744296049104,6.6e-07,81679.0,81678.0,0.61955043]
[1744296049236,6.6e-07,81679.0,81678.0,0.27955043]
[1744296049431,6.6e-07,81679.0,81678.0,0.257106]
[1744296053217,0.257033,81702.0,81678.0,0.257106]
[1744296053218,4e-07,81713.0,81712.0,0.012238]
[1744296053360,4e-07,81713.0,81712.0,0.72000103]
[1744296053565,0.0498,81739.0,81721.0,0.256971]
[1744296053566,6.3e-07,81722.0,81721.0,0.256971]
[1744296053767,6.3e-07,81722.0,81721.0,0.37752482]
[1744296053979,6.3e-07,81722.0,81721.0,0.256971]
[1744296054221,0.00042358,81722.0,81721.0,0.2793928]
[1744296054609,0.00042358,81722.0,81721.0,0.256971]
[1744296057284,0.00042358,81722.0,81721.0,0.012236]
[1744296058283,0.00042358,81722.0,81721.0,0.01468311]
[1744296058894,0.244661,81746.0,81721.0,0.01468311]
[1744296058895,3e-07,81739.0,81731.0,0.352235]
[1744296059093,0.00012711,81739.0,81738.0,0.256918]
[1744296059426,0.00012711,81739.0,81738.0,0.37747182]
[1744296059628,1.1e-07,81739.0,81738.0,0.37747182]
[1744296060255,1.1e-07,81739.0,81738.0,0.72968153]
[1744296060467,0.02459235,81769.0,81751.0,0.596877]
[1744296060913,0.28141335,81769.0,81751.0,0.256877]
[1744296061114,0.01223,81765.0,81751.0,0.256877]
[1744296061455,0.244613,81762.0,81751.0,0.012232]
[1744296061574,0.12059382,81752.0,81745.0,0.012233]
[1744296061776,0.012232,81748.0,81740.0,0.012233]
[1744296062111,4e-05,81752.0,81740.0,0.012233]
[1744296062112,4e-05,81752.0,81751.0,0.256877]
[1744296062272,4e-07,81753.0,81752.0,0.352232]
[1744296062477,4e-07,81753.0,81752.0,0.47278582]
[1744296062678,4e-07,81753.0,81752.0,0.52278582]
[1744296062952,4e-07,81753.0,81752.0,0.47278582]
[1744296063297,7e-07,81758.0,81757.0,0.596858]
[1744296063497,0.02459235,81769.0,81768.0,0.012229]
[1744296063498,5e-08,81769.0,81768.0,0.012229]
[1744296063711,8.4e-07,81769.0,81768.0,0.47278282]
[1744296063943,8.4e-07,81769.0,81768.0,0.71737682]
[1744296064150,8.4e-07,81769.0,81768.0,0.72674977]
[1744296064576,8.4e-07,81769.0,81768.0,0.77674977]
[1744296064783,8e-05,81794.0,81793.0,0.256744]
[1744296065010,0.00020676,81794.0,81793.0,0.256744]
[1744296066189,0.00020676,81794.0,81793.0,0.244519]
[1744296066390,0.00020676,81794.0,81793.0,0.256744]
[1744296066605,0.00020676,81794.0,81793.0,0.231744]
[1744296066808,0.12076058,81794.0,81785.0,0.012227]
[1744296067103,0.12055382,81793.0,81791.0,0.244522]
[1744296068511,0.12055382,81793.0,81791.0,0.256748]
[1744296069042,0.12055382,81793.0,81790.0,0.256754]
[1744296069358,0.12055382,81793.0,81789.0,0.256751]
[1744296069559,0.12055382,81793.0,81790.0,0.244527]
[1744296069760,0.12055382,81793.0,81792.0,0.244522]
[1744296070162,0.12055382,81793.0,81792.0,0.256748]
[1744296070601,0.00020676,81794.0,81793.0,0.012225]
[1744296071462,0.00020676,81794.0,81791.0,0.256748]
[1744296071463,0.00020676,81794.0,81791.0,0.244522]
[1744296071701,0.00020676,81794.0,81787.0,0.256763]
[1744296071702,0.12076058,81794.0,81787.0,0.012226]
[1744296071867,0.12055382,81793.0,81791.0,0.244525]
[1744296072206,0.12055382,81793.0,81788.0,0.244533]
[1744296072398,0.12055382,81793.0,81790.0,0.244528]
[1744296072594,0.12055382,81793.0,81792.0,0.012226]
[1744296072813,0.00020676,81794.0,81793.0,0.256744]
[1744296072987,0.12076058,81794.0,81789.0,0.012226]
[1744296073187,0.12055382,81793.0,81782.0,0.012227]
[1744296073447,0.244522,81792.0,81786.0,0.24454]
[1744296073659,0.12055382,81791.0,81780.0,0.244556]
[1744296073858,0.25676,81789.0,81781.0,0.256782]
[1744296074055,0.31095382,81788.0,81783.0,0.244549]
[1744296074256,0.55548882,81788.0,81782.0,0.24455]
[1744296074400,0.31095382,81788.0,81783.0,0.244548]
[1744296074604,0.32317982,81788.0,81777.0,0.012228]
[1744296074803,0.32317982,81788.0,81779.0,0.012228]
[1744296074804,0.244539,81787.0,81779.0,0.012228]
[1744296075003,0.012227,81785.0,81777.0,0.012228]
[1744296075206,0.12055382,81784.0,81782.0,0.256778]
[1744296075681,0.1904,81788.0,81786.0,0.012227]
[1744296075884,0.12055382,81787.0,81786.0,0.256767]
[1744296076084,0.12055382,81787.0,81781.0,0.012227]
[1744296076309,0.12055382,81787.0,81785.0,0.244543]
[1744296076644,0.12055382,81787.0,81783.0,0.256774]
[1744296076981,0.12055382,81787.0,81783.0,0.244548]
[1744296077190,0.012228,81779.0,81771.0,0.012229]
[1744296077394,0.12055382,81778.0,81773.0,0.244579]
[1744296077571,0.12055382,81778.0,81774.0,0.244575]
[1744296077752,0.12055382,81778.0,81775.0,0.244573]
[1744296077950,0.12055382,81778.0,81772.0,0.256808]
[1744296078138,0.12055382,81778.0,81772.0,0.012229]
[1744296078335,0.12055382,81778.0,81773.0,0.244577]
[1744296078563,0.12055382,81778.0,81774.0,0.244576]
[1744296078789,0.244568,81777.0,81772.0,0.244582]
[1744296078969,0.12055382,81776.0,81774.0,0.244575]
[1744296079933,0.0457,81790.0,81781.0,0.012227]
[1744296080141,0.244538,81787.0,81782.0,0.244552]
[1744296080296,0.12055382,81786.0,81783.0,0.244549]
[1744296080498,0.36509482,81786.0,81781.0,0.256782]
[1744296080698,0.12055382,81786.0,81774.0,0.244576]
[1744296080901,0.256773,81784.0,81777.0,0.244564]
[1744296081102,0.256773,81784.0,81776.0,0.012228]
[1744296081103,0.012227,81782.0,81774.0,0.012228]
[1744296081442,0.12055382,81781.0,81775.0,0.012228]
[1744296081646,0.12055382,81781.0,81778.0,0.012228]
[1744296081851,0.012228,81777.0,81740.0,0.41994623]
[1744296082059,0.37735482,81776.0,81769.0,0.24459]
[1744296082209,0.244581,81773.0,81767.0,0.244596]
[1744296082414,0.36513582,81772.0,81766.0,0.01223]
[1744296082636,0.012229,81771.0,81765.0,2.0]
[1744296082841,0.25683,81766.0,81765.0,2.0]
[1744296083049,0.37738382,81766.0,81765.0,2.0]
[1744296084072,0.12055382,81766.0,81765.0,2.0]
[1744296084421,0.1904,81770.0,81765.0,2.0]
[1744296084625,0.12055382,81769.0,81765.0,2.244597]
[1744296085451,0.36514582,81769.0,81765.0,2.0]
[1744296085653,0.12055382,81769.0,81765.0,2.0]
[1744296085991,0.244594,81768.0,81765.0,2.0]
[1744296086279,0.12055382,81767.0,81765.0,2.0]
[1744296086436,0.36515182,81767.0,81765.0,2.0]
[1744296086636,0.12055382,81767.0,81765.0,2.0]
[1744296086835,0.25683,81766.0,81765.0,2.0]
[1744296087051,0.37738382,81766.0,81765.0,2.0]
[1744296087446,0.56750382,81766.0,81765.0,2.0]
[1744296088682,0.37738382,81766.0,81765.0,2.0]
[1744296088885,0.12055382,81766.0,81765.0,2.0]
[1744296089425,0.13278382,81766.0,81765.0,2.0]
[1744296090003,0.13278382,81766.0,81765.0,2.02244947]
[1744296090211,0.12055382,81766.0,81765.0,2.02244947]
[1744296090611,0.13278382,81766.0,81765.0,2.02244947]
[1744296090819,0.32290382,81766.0,81765.0,2.02244947]
[1744296091018,0.12055382,81766.0,81765.0,2.02244947]
[1744296091220,0.012226,81787.0,81781.0,0.256781]
[1744296091451,0.012227,81785.0,81777.0,0.012228]
[1744296091656,0.007227,81785.0,81780.0,0.244557]
[1744296091890,0.012227,81784.0,81778.0,0.02244947]
[1744296092038,0.012228,81779.0,81778.0,0.02244947]
[1744296092239,0.13278182,81779.0,81778.0,0.02244947]
[1744296092445,0.012228,81773.0,81762.0,0.24461]
[1744296092651,0.12055382,81772.0,81768.0,0.244593]
[1744296092843,0.36513682,81772.0,81768.0,0.244593]
[1744296093048,0.13278282,81772.0,81766.0,0.01223]
[1744296093250,0.12055382,81772.0,81768.0,0.244593]
[1744296093429,0.12055382,81772.0,81765.0,2.0]
[1744296093430,0.012229,81771.0,81765.0,2.0]
[1744296093629,0.12055382,81770.0,81766.0,0.244599]
[1744296093853,0.25683,81766.0,81765.0,2.0]
[1744296094055,0.37738382,81766.0,81765.0,2.0]
[1744296094917,0.12055382,81766.0,81765.0,2.0]
[1744296095144,0.13278382,81766.0,81765.0,2.0]
[1744296095265,0.19452467,81766.0,81765.0,2.0]
[1744296095472,0.39711805,81766.0,81765.0,2.0]
[1744296095701,0.44251805,81766.0,81765.0,2.0]
[1744296095902,2.04163805,81766.0,81765.0,1.430381]
[1744296096098,0.256925,81736.0,81732.0,0.0003364]
[1744296096320,0.12055382,81735.0,81732.0,0.24516319]
[1744296096756,0.12055382,81735.0,81732.0,0.00046319]
[1744296096875,0.12055382,81735.0,81732.0,0.01269819]
[1744296097075,0.012234,81733.0,81732.0,0.00046319]
[1744296097318,0.12055382,81733.0,81732.0,0.00046319]
[1744296099090,0.37748682,81733.0,81732.0,0.00046319]
[1744296099335,0.38963039,81733.0,81732.0,0.00046319]
[1744296099749,1.64891039,81733.0,81732.0,0.00046319]
[1744296099962,1.66345124,81733.0,81732.0,0.00046319]
[1744296100163,1.66345124,81733.0,81711.0,0.004]
[1744296100165,0.256978,81719.0,81711.0,0.004]
[1744296100363,0.257,81712.0,81711.0,0.004]
[1744296100594,0.257,81712.0,81683.0,0.000336]
[1744296100595,0.257087,81684.0,81683.0,0.000336]
[1744296100742,0.12055382,81684.0,81683.0,0.000336]
[1744296100952,0.12055382,81684.0,81683.0,0.01270481]
[1744296101117,0.12055382,81684.0,81683.0,0.00046281]
[1744296101519,0.13279582,81684.0,81683.0,0.00046281]
[1744296102029,0.15442835,81684.0,81683.0,0.00046281]
[1744296102437,0.012242,81682.0,81681.0,0.004]
[1744296102586,0.257131,81670.0,81651.0,0.004]
[1744296102791,0.37768482,81670.0,81669.0,0.00046313]
[1744296104308,0.39222567,81670.0,81669.0,0.00046313]
[1744296104480,0.257188,81652.0,81651.0,0.004]
[1744296104805,0.31083382,81652.0,81651.0,0.00412696]
[1744296105221,0.31083382,81652.0,81651.0,0.01637396]
[1744296105417,0.31083382,81652.0,81651.0,0.26131796]
[1744296105418,0.19028,81652.0,81651.0,0.26131796]
[1744296105573,0.4144,81660.0,81659.0,0.257166]
[1744296105784,0.60468,81674.0,81670.0,0.244886]
[1744296106149,0.13279682,81673.0,81666.0,0.257141]
[1744296106283,0.12055382,81673.0,81668.0,0.257136]
[1744296107122,0.244884,81672.0,81665.0,0.257146]
[1744296107360,0.12055382,81671.0,81666.0,0.244897]
[1744296107560,0.244899,81666.0,81652.0,0.24494]
[1744296107717,0.244899,81666.0,81651.0,0.00412696]
[1744296107718,0.257159,81662.0,81655.0,0.244932]
[1744296107919,0.12055382,81661.0,81655.0,0.244931]
[1744296108123,0.12055382,81661.0,81655.0,0.257177]
[1744296108333,0.12055382,81661.0,81651.0,0.00412696]
[1744296108334,0.12055382,81661.0,81651.0,0.01637396]
[1744296108539,0.12055382,81661.0,81660.0,0.012245]
[1744296108703,0.12055382,81661.0,81659.0,0.244918]
[1744296109528,0.12055382,81661.0,81660.0,0.012245]
[1744296111049,0.12055382,81661.0,81659.0,0.244918]
[1744296111430,0.12055382,81661.0,81655.0,0.012246]
[1744296111676,0.12055382,81661.0,81646.0,0.244958]
[1744296111677,0.24493,81656.0,81650.0,0.245282]
[1744296111991,0.12055382,81655.0,81651.0,0.00412696]
[1744296112291,0.257188,81652.0,81651.0,0.00412696]
[1744296112589,0.12055382,81652.0,81651.0,0.00412696]
[1744296112944,0.12055382,81652.0,81651.0,0.01637396]
[1744296113145,0.012245,81662.0,81651.0,0.01637396]
[1744296113146,0.01231578,81684.0,81683.0,0.012242]
[1744296113353,0.01231578,81684.0,81674.0,0.244875]
[1744296113354,0.4144,81706.0,81694.0,0.01224]
[1744296113559,0.4144,81706.0,81663.0,0.34]
[1744296113560,0.12055382,81705.0,81674.0,0.68494239]
[1744296113761,0.12055382,81705.0,81681.0,0.012242]
[1744296113762,0.012241,81691.0,81681.0,0.012242]
[1744296114117,0.012242,81685.0,81674.0,0.244875]
[1744296114293,0.12055382,81684.0,81677.0,0.244864]
[1744296114612,0.12055382,81684.0,81682.0,0.244851]
[1744296114814,0.12055382,81684.0,81682.0,0.257093]
[1744296115239,0.12055382,81684.0,81683.0,0.012242]
[1744296115861,0.19012,81686.0,81685.0,0.012242]
[1744296116087,0.31067382,81686.0,81685.0,0.012242]
[1744296116523,0.12055382,81686.0,81685.0,0.012242]
[1744296117404,0.19012,81692.0,81685.0,0.012242]
[1744296117405,0.19012,81692.0,81691.0,0.257066]
[1744296118184,0.4144,81703.0,81702.0,0.257031]
[1744296118395,0.53495382,81703.0,81702.0,0.257031]
[1744296119818,0.53495382,81703.0,81700.0,0.244796]
[1744296120019,0.53495382,81703.0,81702.0,0.012239]
[1744296120220,0.012239,81700.0,81666.0,0.367327]
[1744296120540,0.244811,81696.0,81688.0,0.012241]
[1744296120714,0.12055382,81695.0,81691.0,0.244824]
[1744296120897,0.12055382,81695.0,81693.0,0.244818]
[1744296121098,0.12055382,81695.0,81688.0,0.012241]
[1744296121099,0.012241,81688.0,81677.0,0.012243]
[1744296121360,0.12055382,81687.0,81685.0,0.244842]
[1744296121541,0.12055382,81687.0,81684.0,0.012242]
[1744296121743,0.12055382,81687.0,81684.0,0.244845]
[1744296121903,0.12055382,81687.0,81685.0,0.257082]
[1744296122241,0.12055382,81687.0,81680.0,0.244855]
[1744296122445,0.36539482,81686.0,81681.0,0.244854]
[1744296122605,0.01224,81694.0,81686.0,0.012241]
[1744296122798,0.012242,81684.0,81676.0,0.244867]
[1744296123005,0.12055382,81683.0,81677.0,0.012243]
[1744296123205,0.12055382,81683.0,81678.0,0.012243]
[1744296123564,0.12055382,81683.0,81682.0,0.012242]
[1744296123743,0.12055382,81683.0,81681.0,0.244854]
[1744296123888,0.12055382,81683.0,81679.0,0.012243]
[1744296124089,0.12055382,81683.0,81677.0,0.244866]
[1744296124297,0.12055382,81683.0,81678.0,0.244862]
[1744296124511,0.244852,81682.0,81672.0,0.02231458]
[1744296124735,0.12055382,81681.0,81673.0,0.012243]
[1744296124938,0.36540882,81681.0,81676.0,0.244869]
[1744296125521,0.36540882,81681.0,81675.0,0.244872]
[1744296125720,0.257116,81675.0,81668.0,0.012244]
[1744296125900,0.257109,81679.0,81671.0,0.257128]
[1744296126119,0.12055382,81678.0,81672.0,0.244881]
[1744296126316,0.12055382,81678.0,81674.0,0.012243]
[1744296126658,0.12055382,81678.0,81675.0,0.244869]
[1744296126861,0.12055382,81678.0,81673.0,0.244877]
[1744296127181,0.12055382,81678.0,81676.0,0.02239086]
[1744296127458,0.12055382,81678.0,81673.0,0.244877]
[1744296127657,0.12055382,81678.0,81668.0,0.244893]
[1744296127823,0.12055382,81678.0,81670.0,0.00012696]
[1744296128026,0.12055382,81678.0,81673.0,0.244878]
[1744296128225,0.12055382,81678.0,81674.0,0.02241359]
[1744296128681,0.12055382,81678.0,81670.0,0.01237096]
[1744296128682,0.244814,81695.0,81686.0,0.244839]
[1744296128843,0.12055382,81687.0,81677.0,0.012243]
[1744296129010,0.12055382,81687.0,81680.0,0.012242]
[1744296129213,0.12055382,81687.0,81681.0,0.244854]
[1744296129412,0.12055382,81687.0,81682.0,0.26726459]
[1744296129647,0.12055382,81687.0,81683.0,0.26726159]
[1744296130189,0.0244265,81714.0,81700.0,0.012239]
[1744296130308,0.0244265,81714.0,81695.0,0.244813]
[1744296130309,0.244795,81701.0,81695.0,0.244813]
[1744296130508,0.244813,81695.0,81689.0,0.24483]
[1744296130763,0.257039,81700.0,81691.0,0.244824]
[1744296130979,0.0001684,81707.0,81696.0,0.244809]
[1744296130980,0.12055382,81699.0,81696.0,0.244809]
[1744296131184,0.12055382,81699.0,81698.0,0.257044]
[1744296131329,0.12055382,81699.0,81697.0,0.02241359]
[1744296131723,0.0001684,81707.0,81701.0,0.244793]
[1744296131925,0.12055382,81706.0,81704.0,0.012239]
[1744296132127,0.00029508,81707.0,81706.0,0.257019]
[1744296132736,0.00029508,81707.0,81706.0,0.27943259]
[1744296133352,0.00029508,81707.0,81706.0,0.73998641]
[1744296134160,0.00029508,81707.0,81706.0,0.61943259]
[1744296134567,0.00029508,81707.0,81706.0,0.27943259]
[1744296136363,0.00029508,81707.0,81706.0,0.02241359]
[1744296136564,0.3778639,81707.0,81706.0,0.02241359]
[1744296136785,0.257049,81697.0,81686.0,0.012241]
[1744296136964,0.244822,81692.0,81686.0,0.244839]
[1744296137165,0.00029508,81707.0,81702.0,0.012239]
[1744296137386,0.1208489,81707.0,81705.0,0.244783]
[1744296137588,0.00029508,81707.0,81706.0,0.257019]
[1744296138189,0.00029508,81707.0,81704.0,0.244785]
[1744296138190,0.00029508,81707.0,81703.0,0.012239]
[1744296138365,0.00029508,81707.0,81706.0,0.257019]
[1744296138714,0.00029508,81707.0,81706.0,0.71757282]
[1744296138715,8e-08,81707.0,81706.0,0.71757282]
[1744296139124,8e-08,81707.0,81706.0,0.73996344]
[1744296139318,8e-08,81707.0,81706.0,0.75450429]
[1744296139497,8e-08,81707.0,81706.0,0.73211367]
[1744296139920,8e-08,81707.0,81706.0,0.74126704]
[1744296140121,8e-08,81707.0,81706.0,0.72672619]
[1744296140325,8e-08,81707.0,81706.0,0.74126704]
[1744296140568,0.0001684,81738.0,81724.0,0.596962]
[1744296142369,0.00059135,81725.0,81723.0,0.244728]
[1744296143419,0.00059135,81725.0,81718.0,0.012237]
[1744296143420,0.244734,81722.0,81716.0,0.244749]
[1744296143705,0.12055382,81721.0,81716.0,0.24475]
[1744296143903,0.12055382,81721.0,81717.0,0.244746]
[1744296144106,0.00059135,81725.0,81720.0,0.012236]
[1744296144314,0.00059135,81725.0,81721.0,0.244735]
[1744296144526,0.00059135,81725.0,81722.0,0.244731]
[1744296144936,0.00059135,81725.0,81723.0,0.244729]
[1744296145135,0.00059135,81725.0,81724.0,0.012236]
[1744296145434,0.00059135,81725.0,81724.0,0.01468315]
[1744296146014,0.00059135,81725.0,81724.0,0.25940915]
[1744296146214,0.00059135,81725.0,81724.0,0.256962]
[1744296151881,0.00059135,81725.0,81724.0,0.71751582]
[1744296152055,3.5e-07,81725.0,81724.0,0.73705667]
[1744296152250,3.5e-07,81725.0,81724.0,0.78255667]
[1744296153001,3.5e-07,81725.0,81724.0,0.77755667]
[1744296153199,3.5e-07,81725.0,81724.0,0.96743667]
[1744296153408,3.5e-07,81725.0,81724.0,0.97667428]
[1744296154629,3.5e-07,81725.0,81724.0,1.00714194]
[1744296155168,3.5e-07,81725.0,81724.0,0.99260109]
[1744296155367,3.5e-07,81725.0,81724.0,0.80272109]
[1744296155731,3.5e-07,81725.0,81724.0,0.99256109]
[1744296156829,3.5e-07,81725.0,81724.0,1.00710194]
[1744296157034,0.0001684,81740.0,81739.0,0.584681]
[1744296157035,8e-07,81740.0,81739.0,0.584681]
[1744296157295,6.3e-07,81740.0,81739.0,0.73200967]
[1744296157411,0.0001682,81756.0,81755.0,0.61140485]
[1744296157412,8.3e-07,81756.0,81755.0,0.61140485]
[1744296157617,8.3e-07,81756.0,81755.0,0.90725782]
[1744296159444,3.3e-07,81766.0,81765.0,0.01223]
[1744296159655,0.00012712,81766.0,81765.0,0.71983206]
[1744296159850,0.00012712,81766.0,81765.0,0.71738682]
[1744296160454,0.00012712,81766.0,81764.0,0.244605]
[1744296160455,0.00012712,81766.0,81763.0,0.244607]
[1744296160653,0.00012712,81766.0,81765.0,0.256833]
[1744296161818,0.01223,81765.0,81759.0,0.012231]
[1744296161970,0.00012712,81766.0,81762.0,0.244612]
[1744296162175,0.00012712,81766.0,81764.0,0.244606]
[1744296162813,0.244604,81765.0,81760.0,0.256845]
[1744296163021,0.244604,81765.0,81758.0,0.012231]
[1744296163223,0.244614,81762.0,81757.0,0.256855]
[1744296163529,0.01223,81760.0,81753.0,0.012231]
[1744296163775,0.244621,81759.0,81753.0,0.244636]
[1744296164064,0.24463,81756.0,81751.0,0.244644]
[1744296164215,0.244633,81755.0,81752.0,0.244642]
[1744296164413,0.012231,81756.0,81751.0,0.012232]
[1744296164630,0.256861,81756.0,81752.0,0.24464]
[1744296164833,0.244635,81755.0,81751.0,0.256874]
[1744296165232,0.244637,81754.0,81751.0,0.244642]
[1744296165436,0.244651,81749.0,81744.0,0.012233]
[1744296165645,0.244645,81751.0,81747.0,0.244655]
[1744296165846,0.244641,81753.0,81748.0,0.256884]
[1744296166048,0.244645,81751.0,81748.0,0.256884]
[1744296166209,0.244645,81751.0,81739.0,0.244679]
[1744296166210,0.06214085,81786.0,81758.0,0.256855]
[1744296166414,0.01235712,81766.0,81760.0,0.01223]
[1744296166667,0.25695812,81766.0,81761.0,0.244613]
[1744296166872,0.25695812,81766.0,81758.0,0.012231]
[1744296166873,0.244606,81764.0,81756.0,0.244628]
[1744296167168,0.244618,81760.0,81756.0,0.244628]
[1744296167671,0.244618,81760.0,81752.0,0.244641]
[1744296167672,0.24463,81756.0,81752.0,0.244641]
[1744296168176,0.244636,81754.0,81748.0,0.012232]
[1744296168471,0.244627,81758.0,81748.0,0.012232]
[1744296168472,0.0473,81760.0,81759.0,0.256852]
[1744296168785,0.16785382,81760.0,81759.0,0.256852]
[1744296168989,0.16785382,81760.0,81759.0,0.244621]
[1744296169190,0.16785382,81760.0,81757.0,0.244623]
[1744296169384,0.16785382,81760.0,81758.0,0.244623]
[1744296169533,0.16785382,81760.0,81758.0,0.256855]
[1744296170503,0.012231,81753.0,81746.0,0.012233]
[1744296170650,0.244639,81754.0,81749.0,0.244649]
[1744296170856,0.244642,81753.0,81749.0,0.244649]
[1744296171396,0.24463,81756.0,81751.0,0.012232]
[1744296171593,0.12055382,81756.0,81753.0,0.244636]
[1744296171896,0.0473,81760.0,81759.0,0.256852]
[1744296172399,0.00012712,81766.0,81763.0,0.01223]
[1744296172559,0.00012712,81766.0,81764.0,0.244606]
[1744296172898,0.256851,81760.0,81754.0,0.244634]
[1744296173101,0.01223,81764.0,81757.0,0.012231]
[1744296173303,0.12055382,81763.0,81757.0,0.012231]
[1744296173450,0.244612,81762.0,81759.0,0.24462]
[1744296173650,0.244625,81758.0,81754.0,0.244635]
[1744296173865,0.00012712,81766.0,81749.0,0.24465]
[1744296173866,0.256869,81754.0,81749.0,0.24465]
[1744296174185,0.12055382,81753.0,81750.0,0.244646]
[1744296174383,0.36519282,81753.0,81750.0,0.244646]
[1744296174583,0.244642,81752.0,81747.0,0.256886]
[1744296174815,0.12055382,81752.0,81749.0,0.25688]
[1744296175188,0.12055382,81752.0,81750.0,0.244647]
[1744296175390,0.012232,81747.0,81740.0,0.012233]
[1744296175589,0.012232,81747.0,81719.0,0.489477]
[1744296175590,0.012233,81740.0,81735.0,0.244693]
[1744296175857,0.244696,81734.0,81728.0,0.012235]
[1744296175993,0.012233,81740.0,81730.0,0.012235]
[1744296176197,0.244673,81742.0,81739.0,0.24468]
[1744296176400,0.36522982,81741.0,81737.0,0.244685]
[1744296176606,0.12055382,81741.0,81740.0,0.244678]
[1744296177084,0.12055382,81741.0,81738.0,0.256917]
[1744296177863,0.12055382,81741.0,81739.0,0.244681]
[1744296178236,0.12055382,81741.0,81738.0,0.256917]
[1744296178446,0.36522882,81741.0,81738.0,0.256917]
[1744296178646,0.012234,81738.0,81730.0,0.012235]
[1744296178825,0.012234,81739.0,81733.0,0.012234]
[1744296179029,0.25694,81731.0,81730.0,0.00012683]
[1744296179238,0.37749382,81731.0,81730.0,0.00012683]
[1744296179853,0.42649382,81731.0,81730.0,0.00012683]
[1744296180074,0.47279382,81731.0,81730.0,0.00012683]
[1744296180472,0.21585382,81731.0,81730.0,0.00012683]
[1744296180795,0.24469,81736.0,81732.0,0.244699]
[1744296180988,0.12055382,81735.0,81733.0,0.244698]
[1744296181194,0.12055382,81735.0,81731.0,0.012235]
[1744296181364,0.12055382,81735.0,81730.0,0.25706983]
[1744296181365,0.244697,81734.0,81730.0,0.25706983]
[1744296181534,0.244701,81733.0,81730.0,0.00012683]
[1744296181733,0.25694,81731.0,81730.0,0.00012683]
[1744296181940,0.37749382,81731.0,81730.0,0.00012683]
[1744296182229,0.82793467,81731.0,81730.0,0.00012683]